fUST/lending_fUST_20240325
["ID","MTS","AMOUNT","RATE_DAILY","PERIOD"]
[320362929,1711337444427,-199.3458037,0.00054794,120]
[320362930,1711337444445,-632.6741963,0.00054794,120]
[320362931,1711337444455,-500.0,0.00054794,120]
[320362932,1711337444465,-597.38,0.00054794,120]
[320362933,1711337444475,-500.69339801,0.00054794,120]
[320362934,1711337444484,-500.0,0.00054794,120]
[320362935,1711337444494,-500.0,0.00054794,120]
[320362936,1711337444504,-501.87620052,0.00054794,120]
[320362937,1711337444513,-198.881878,0.00054794,7]
[320362938,1711337444522,-198.881878,0.00054794,7]
[320362939,1711337444533,-198.881878,0.00054794,7]
[320362940,1711337444543,-198.881878,0.00054794,7]
[320362941,1711337444553,-500.0,0.00054794,120]
[320362942,1711337444563,-500.0,0.00054794,120]
[320362943,1711337444572,-198.881878,0.00054794,7]
[320362944,1711337444582,-198.881878,0.00054794,7]
[320362945,1711337444593,-1699.91,0.00054794,120]
[320362946,1711337444602,-198.881878,0.00054794,7]
[320362947,1711337444612,-198.881878,0.00054794,7]
[320362948,1711337444621,-500.0,0.00054794,120]
[320362949,1711337444631,-195.82329117,0.00054794,120]
[320362950,1711337444642,-500.0,0.00054794,30]
[320362951,1711337444652,-500.0,0.00054794,120]
[320362952,1711337444661,-500.0,0.00054794,120]
[320362953,1711337444671,-506.11938592,0.00054794,120]
[320362954,1711337444681,-500.0,0.00054794,120]
[320362955,1711337444691,-500.0,0.00054794,120]
[320362956,1711337444701,-500.0,0.00054794,120]
[320362957,1711337444711,-500.0,0.00054794,120]
[320362958,1711337444724,-500.0,0.00054794,120]
[320362959,1711337444734,-151.0,0.00054794,7]
[320362960,1711337444743,-151.0,0.00054794,7]
[320362961,1711337444754,-151.0,0.00054794,7]
[320362962,1711337444763,-151.0,0.00054794,7]
[320362963,1711337444772,-507.61956661,0.00054794,120]
[320362964,1711337444783,-230.13483269,0.00054794,120]
[320362965,1711337444794,-500.0,0.00054794,120]
[320362966,1711337444803,-500.0,0.00054794,120]
[320362967,1711337444813,-500.0,0.00054794,120]
[320362968,1711337444824,-500.0,0.00054794,120]
[320362969,1711337444833,-500.0,0.00054794,120]
[320362970,1711337444844,-500.0,0.00054794,120]
[320362971,1711337444854,-500.0,0.00054794,120]
[320362972,1711337444863,-500.0,0.00054794,120]
[320362973,1711337444872,-500.0,0.00054794,120]
[320362974,1711337444882,-500.0,0.00054794,120]
[320362975,1711337444891,-500.0,0.00054794,120]
[320362976,1711337444901,-500.0,0.00054794,120]
[320362977,1711337444910,-500.0,0.00054794,120]
[320362978,1711337444919,-548.269215,0.00054794,7]
[320362979,1711337444929,-548.269215,0.00054794,7]
[320362980,1711337444938,-548.269215,0.00054794,7]
[320362981,1711337444947,-548.269215,0.00054794,7]
[320362982,1711337444957,-548.269215,0.00054794,7]
[320362983,1711337444966,-548.269215,0.00054794,7]
[320362984,1711337444975,-548.269215,0.00054794,7]
[320362985,1711337444985,-548.269215,0.00054794,7]
[320362986,1711337444994,-500.0,0.00054794,120]
[320362987,1711337445003,-187.69623572,0.00054794,80]
[320362988,1711337445013,-151.0,0.00054794,7]
[320362989,1711337445022,-151.0,0.00054794,7]
[320362990,1711337445031,-500.0,0.00054794,120]
[320362991,1711337445042,-507.64996898,0.00054794,60]
[320362992,1711337445051,-500.0,0.00054794,120]
[320362993,1711337445061,-1420.03,0.00054794,120]
[320362994,1711337445070,-500.0,0.00054794,120]
[320362995,1711337445080,-500.0,0.00054794,120]
[320362996,1711337445090,-1095.11,0.00054794,120]
[320362997,1711337445099,-1906.44,0.00054794,120]
[320362998,1711337445108,-500.0,0.00054794,120]
[320362999,1711337445117,-1500.0,0.00054794,120]
[320363000,1711337445126,-1334.99,0.00054794,120]
[320363001,1711337445136,-155.32282906,0.00054794,7]
[320363002,1711337445145,-500.0,0.00054794,120]
[320363003,1711337445154,-500.0,0.00054794,120]
[320363004,1711337445163,-500.0,0.00054794,120]
[320363005,1711337445173,-2222.99,0.00054794,120]
[320363006,1711337445182,-151.0,0.00054794,7]
[320363007,1711337445191,-151.0,0.00054794,7]
[320363008,1711337445201,-151.0,0.00054794,7]
[320363009,1711337445210,-151.0,0.00054794,7]
[320363010,1711337445220,-151.0,0.00054794,7]
[320363011,1711337445229,-151.0,0.00054794,7]
[320363012,1711337445239,-151.0,0.00054794,7]
[320363013,1711337445248,-151.0,0.00054794,7]
[320363014,1711337445257,-1008.41,0.00054794,120]
[320363015,1711337445267,-500.0,0.00054794,120]
[320363016,1711337445276,-500.0,0.00054794,120]
[320363017,1711337445285,-500.0,0.00054794,120]
[320363018,1711337445295,-503.77036814,0.00054794,120]
[320363019,1711337445304,-500.0,0.00054794,120]
[320363020,1711337445314,-500.0,0.00054794,120]
[320363021,1711337445323,-500.0,0.00054794,120]
[320363022,1711337445333,-500.0,0.00054794,120]
[320363023,1711337445343,-2522.42,0.00054794,120]
[320363024,1711337445353,-1767.22,0.00054794,120]
[320363025,1711337445362,-500.0,0.00054794,120]
[320363027,1711337445371,-500.0,0.00054794,120]
[320363029,1711337445380,-570.7429875,0.00054794,120]
[320363031,1711337445389,-1087.18,0.00054794,120]
[320363033,1711337445400,-500.0,0.00054794,120]
[320363035,1711337445410,-5359.33,0.00054794,120]
[320363037,1711337445421,-1167.36,0.00054794,120]
[320363040,1711337445432,-250.33874182,0.00054794,120]
[320363042,1711337445440,-500.0,0.00054794,120]
[320363044,1711337445450,-151.40616791,0.00054794,120]
[320363046,1711337445460,-1362.72,0.00054794,120]
[320363047,1711337445469,-502.59240978,0.00054794,120]
[320363050,1711337445479,-500.0,0.00054794,120]
[320363052,1711337445488,-1140.15,0.00054794,120]
[320363054,1711337445497,-500.0,0.00054794,120]
[320363056,1711337445506,-503.11041878,0.00054794,120]
[320363058,1711337445515,-505.27293122,0.00054794,120]
[320363059,1711337445525,-10832.21,0.00054794,120]
[320363062,1711337445534,-500.0,0.00054794,120]
[320363063,1711337445544,-503.23095183,0.00054794,120]
[320363066,1711337445553,-5049.83,0.00054794,120]
[320363068,1711337445563,-500.0,0.00054794,120]
[320363070,1711337445572,-503.30148947,0.00054794,120]
[320363072,1711337445581,-504.14678485,0.00054794,120]
[320363074,1711337445591,-500.0,0.00054794,120]
[320363076,1711337445601,-1368.99,0.00054794,120]
[320363078,1711337445609,-500.0,0.00054794,120]
[320363080,1711337445618,-502.24279192,0.00054794,120]
[320363082,1711337445628,-500.58413038,0.00054794,120]
[320363084,1711337445637,-500.0,0.00054794,120]
[320363086,1711337445646,-500.0,0.00054794,120]
[320363088,1711337445655,-504.16089193,0.00054794,120]
[320363090,1711337445664,-505.89,0.00054794,120]
[320363092,1711337445673,-500.0,0.00054794,120]
[320363094,1711337445682,-1030.71,0.00054794,120]
[320363096,1711337445692,-500.0,0.00054794,120]
[320363098,1711337445701,-12644.78,0.00054794,120]
[320363099,1711337445715,-501.14659017,0.00054794,120]
[320363102,1711337445725,-500.0,0.00054794,120]
[320363104,1711337445736,-13511.3,0.00054794,90]
[320363105,1711337445746,-521.17,0.00054794,120]
[320363108,1711337445757,-500.0,0.00054794,120]
[320363110,1711337445767,-503.41785415,0.00054794,120]
[320363112,1711337445776,-500.0,0.00054794,120]
[320363114,1711337445786,-500.0,0.00054794,120]
[320363116,1711337445796,-1246.64,0.00054794,120]
[320363118,1711337445805,-1506.69,0.00054794,120]
[320363120,1711337445814,-500.0,0.00054794,120]
[320363122,1711337445823,-500.0,0.00054794,120]
[320363124,1711337445832,-506.64590864,0.00054794,120]
[320363126,1711337445843,-1249.53,0.00054794,120]
[320363128,1711337445852,-1946.69,0.00054794,120]
[320363129,1711337445861,-500.0,0.00054794,120]
[320363132,1711337445871,-2725.02,0.00054794,21]
[320363133,1711337445881,-504.78694798,0.00054794,120]
[320363136,1711337445891,-500.0,0.00054794,120]
[320363138,1711337445901,-500.0,0.00054794,120]
[320363139,1711337445910,-503.97163738,0.00054794,120]
[320363142,1711337445920,-500.0,0.00054794,60]
[320363144,1711337445929,-502.77807414,0.00054794,120]
[320363146,1711337445938,-979.72,0.00054794,120]
[320363148,1711337445948,-500.0,0.00054794,120]
[320363150,1711337445958,-500.76216688,0.00054794,120]
[320363169,1711337446075,-500.0,0.00054794,120]
[320363171,1711337446085,-2071.83,0.00054794,120]
[320363173,1711337446096,-504.53945357,0.00054794,120]
[320363175,1711337446105,-500.0,0.00054794,120]
[320363177,1711337446115,-500.0,0.00054794,120]
[320363179,1711337446125,-500.0,0.00054794,120]
[320363181,1711337446134,-581.92,0.00054794,120]
[320363184,1711337446145,-2409.33,0.00054794,120]
[320363186,1711337446155,-500.0,0.00054794,120]
[320363187,1711337446165,-1264.63,0.00054794,120]
[320363190,1711337446174,-500.0,0.00054794,120]
[320363192,1711337446184,-1088.37,0.00054794,120]
[320363194,1711337446193,-1023.08,0.00054794,120]
[320363195,1711337446202,-3898.78,0.00054794,120]
[320363198,1711337446212,-2293.19,0.00054794,120]
[320363199,1711337446222,-500.0,0.00054794,120]
[320363201,1711337446232,-500.0,0.00054794,120]
[320363203,1711337446241,-500.0,0.00054794,120]
[320363205,1711337446250,-619.23111951,0.00054794,120]
[320363207,1711337446259,-151.0,0.00054794,7]
[320363209,1711337446268,-787.11,0.00054794,120]
[320363211,1711337446278,-1576.89,0.00054794,2]
[320363213,1711337446287,-50000.0,0.00055,2]
[320363215,1711337446297,-304.008729,0.00055,120]
[320363217,1711337446306,-304.008729,0.00055,120]
[320363220,1711337446315,-500.0,0.00056164,30]
[320363221,1711337446324,-9300.5,0.00057,7]
[320363223,1711337446333,-151.0,0.00057,120]
[320363225,1711337446342,-196.74347,0.00057,120]
[320363227,1711337446351,-326.10775745,0.00057432,4]
[320363229,1711337446360,-279.86192087,0.00057434,120]
[320363231,1711337446369,-279.86192087,0.00057434,120]
[320363233,1711337446378,-279.86192087,0.00057434,120]
[320363235,1711337446387,-279.86192087,0.00057434,120]
[320363237,1711337446396,-279.86192087,0.00057434,120]
[320363239,1711337446406,-279.86192087,0.00057434,120]
[320363241,1711337446415,-279.86192087,0.00057434,120]
[320363243,1711337446424,-279.86192087,0.00057434,120]
[320363245,1711337446433,-279.86192087,0.00057434,120]
[320363247,1711337446442,-279.86192087,0.00057434,120]
[320363249,1711337446450,-279.86192087,0.00057434,120]
[320363251,1711337446460,-279.86192087,0.00057434,120]
[320363253,1711337446469,-279.86192087,0.00057434,120]
[320363254,1711337446479,-279.86192087,0.00057434,120]
[320363255,1711337446488,-279.86192087,0.00057434,120]
[320363256,1711337446497,-279.86192087,0.00057434,120]
[320363258,1711337446506,-279.86192087,0.00057434,120]
[320363259,1711337446515,-279.86192087,0.00057434,120]
[320363260,1711337446524,-279.86192087,0.00057434,120]
[320363261,1711337446533,-280.36,0.00057434,120]
[320363262,1711337446542,-194.46317703,0.00057434,120]
[320363263,1711337446550,-194.46317703,0.00057434,120]
[320363264,1711337446559,-194.46317703,0.00057434,120]
[320363265,1711337446569,-194.46317703,0.00057434,120]
[320363266,1711337446578,-194.46317703,0.00057434,120]
[320363267,1711337446587,-194.46317703,0.00057434,120]
[320363268,1711337446597,-3021.5036758,0.00057434,2]
[320363269,1711337446606,-5387.63,0.00057533,120]
[320363270,1711337446615,-826.3,0.00057534,120]
[320363271,1711337446624,-866.39,0.00057534,120]
[320363272,1711337446633,-500.0,0.00057534,120]
[320363273,1711337446643,-500.0,0.00057534,120]
[320363274,1711337446652,-1012.35,0.00057534,120]
[320363276,1711337446661,-432.66922936,0.00057534,120]
[320363277,1711337446670,-520.35,0.00057534,120]
[320363279,1711337446679,-500.0,0.00057534,120]
[320363281,1711337446688,-500.0,0.00057534,120]
[320363283,1711337446697,-628.45744501,0.00057534,120]
[320363285,1711337446706,-531.40468833,0.00057534,120]
[320363287,1711337446720,-246.76955318,0.00057534,120]
[320363289,1711337446729,-508.7174315,0.00057534,120]
[320363291,1711337446738,-500.0,0.00057534,120]
[320363293,1711337446747,-500.0,0.00057534,120]
[320363295,1711337446758,-504.28173393,0.00057534,120]
[320363297,1711337446767,-504.61208058,0.00057534,120]
[320363299,1711337446776,-500.0,0.00057534,120]
[320363301,1711337446785,-248.0543296,0.00057534,120]
[320363303,1711337446796,-252.40528033,0.00057534,120]
[320363305,1711337446805,-500.0,0.00057534,120]
[320363307,1711337446814,-500.0,0.00057534,120]
[320363309,1711337446822,-500.0,0.00057534,120]
[320363311,1711337446831,-502.31086731,0.00057534,120]
[320363313,1711337446840,-500.0,0.00057534,120]
[320363315,1711337446850,-500.0,0.00057534,120]
[320363317,1711337446859,-500.0,0.00057534,120]
[320363319,1711337446868,-500.0,0.00057534,120]
[320363321,1711337446877,-654.74,0.00057534,120]
[320363323,1711337446886,-1557.96,0.00057534,120]
[320363325,1711337446895,-500.0,0.00057534,120]
[320363327,1711337446904,-503.26353944,0.00057534,120]
[320363329,1711337446913,-718.28,0.00057534,120]
[320363331,1711337446922,-500.0,0.00057534,120]
[320363333,1711337446931,-500.0,0.00057534,120]
[320363335,1711337446940,-500.0,0.00057534,120]
[320363337,1711337446949,-500.0,0.00057534,120]
[320363339,1711337446958,-1083.31,0.00057534,120]
[320363341,1711337446968,-500.0,0.00057534,120]
[320363343,1711337446977,-500.0,0.00057534,120]
[320363345,1711337446986,-500.0,0.00057534,120]
[320363347,1711337446995,-500.0,0.00057534,120]
[320363349,1711337447006,-1235.2,0.00057534,120]
[320363351,1711337447017,-506.17498192,0.00057534,120]
[320363353,1711337447027,-1996.52,0.00057534,120]
[320363355,1711337447036,-500.0,0.00057534,120]
[320363357,1711337447045,-500.0,0.00057534,120]
[320363359,1711337447055,-508.56,0.00057534,120]
[320363361,1711337447064,-500.0,0.00057534,120]
[320363363,1711337447073,-832.02,0.00057534,120]
[320363365,1711337447082,-500.0,0.00057534,120]
[320363367,1711337447091,-597.38,0.00057534,120]
[320363369,1711337447100,-500.0,0.00057534,120]
[320363371,1711337447110,-500.0,0.00057534,120]
[320363373,1711337447118,-198.881878,0.00057534,120]
[320363375,1711337447127,-198.881878,0.00057534,120]
[320363376,1711337447136,-198.881878,0.00057534,120]
[320363378,1711337447146,-500.0,0.00057534,120]
[320363380,1711337447155,-500.0,0.00057534,120]
[320363383,1711337447164,-1699.91,0.00057534,120]
[320363385,1711337447180,-198.881878,0.00057534,120]
[320363388,1711337447193,-198.881878,0.00057534,120]
[320363390,1711337447205,-198.881878,0.00057534,120]
[320363392,1711337447217,-500.0,0.00057534,120]
[320363395,1711337447229,-626.64056324,0.00057534,30]
[320363397,1711337447239,-500.0,0.00057534,120]
[320363399,1711337447250,-500.0,0.00057534,120]
[320363401,1711337447262,-500.0,0.00057534,120]
[320363404,1711337447274,-501.42011754,0.00057534,120]
[320363406,1711337447286,-500.0,0.00057534,120]
[320363408,1711337447298,-500.0,0.00057534,120]
[320363411,1711337447310,-500.0,0.00057534,120]
[320363413,1711337447321,-151.0,0.00057534,120]
[320363415,1711337447333,-151.0,0.00057534,120]
[320363417,1711337447344,-500.0,0.00057534,120]
[320363419,1711337447354,-500.0,0.00057534,120]
[320363422,1711337447366,-500.0,0.00057534,120]
[320363424,1711337447378,-500.0,0.00057534,120]
[320363426,1711337447390,-500.0,0.00057534,120]
[320363429,1711337447403,-500.0729833,0.00057534,120]
[320363431,1711337447415,-500.0,0.00057534,120]
[320363433,1711337447426,-431.28069802,0.00057534,120]
[320363435,1711337447438,-500.0,0.00057534,120]
[320363438,1711337447450,-500.0,0.00057534,120]
[320363440,1711337447461,-500.0,0.00057534,120]
[320363442,1711337447470,-500.0,0.00057534,120]
[320363444,1711337447482,-502.36507735,0.00057534,120]
[320363447,1711337447495,-548.269215,0.00057534,120]
[320363449,1711337447507,-548.269215,0.00057534,120]
[320363452,1711337447520,-548.269215,0.00057534,120]
[320363454,1711337447532,-548.269215,0.00057534,120]
[320363456,1711337447542,-500.0,0.00057534,120]
[320363458,1711337447554,-504.94872063,0.00057534,120]
[320363461,1711337447565,-500.0,0.00057534,120]
[320363463,1711337447576,-1420.03,0.00057534,120]
[320363465,1711337447587,-500.0,0.00057534,120]
[320363467,1711337447601,-497.88923748,0.00057534,120]
[320363470,1711337447613,-1095.11,0.00057534,120]
[320363472,1711337447626,-1906.44,0.00057534,120]
[320363474,1711337447638,-500.0,0.00057534,120]
[320363477,1711337447650,-1500.0,0.00057534,120]
[320363479,1711337447661,-1334.99,0.00057534,120]
[320363481,1711337447672,-500.0,0.00057534,120]
[320363483,1711337447683,-500.0,0.00057534,120]
[320363485,1711337447693,-500.0,0.00057534,120]
[320363488,1711337447703,-2222.99,0.00057534,120]
[320363490,1711337447713,-151.0,0.00057534,10]
[320363492,1711337447726,-151.0,0.00057534,10]
[320363494,1711337447737,-151.0,0.00057534,10]
[320363496,1711337447749,-258.788644,0.00057534,10]
[320363499,1711337447759,-1008.41,0.00057534,120]
[320363501,1711337447770,-506.29417019,0.00057534,120]
[320363503,1711337447781,-500.0,0.00057534,120]
[320363505,1711337447792,-500.0,0.00057534,120]
[320363507,1711337447802,-500.0,0.00057534,120]
[320363509,1711337447812,-500.0,0.00057534,120]
[320363511,1711337447822,-500.0,0.00057534,120]
[320363514,1711337447833,-500.0,0.00057534,120]
[320363516,1711337447843,-2522.42,0.00057534,120]
[320363518,1711337447853,-1767.22,0.00057534,120]
[320363520,1711337447863,-151.0,0.00057534,120]
[320363521,1711337447874,-151.0,0.00057534,120]
[320363523,1711337447885,-500.0,0.00057534,120]
[320363524,1711337447895,-500.0,0.00057534,120]
[320363526,1711337447905,-1087.18,0.00057534,120]
[320363527,1711337447916,-500.0,0.00057534,120]
[320363529,1711337447926,-5359.33,0.00057534,120]
[320363530,1711337447936,-1167.36,0.00057534,120]
[320363532,1711337447947,-500.0,0.00057534,120]
[320363534,1711337447958,-1362.72,0.00057534,120]
[320363535,1711337447968,-500.0,0.00057534,120]
[320363537,1711337447979,-1140.15,0.00057534,120]
[320363539,1711337447991,-500.0,0.00057534,120]
[320363540,1711337448002,-10832.21,0.00057534,120]
[320363542,1711337448013,-500.0,0.00057534,120]
[320363544,1711337448024,-5049.83,0.00057534,120]
[320363545,1711337448035,-500.0,0.00057534,120]
[320363547,1711337448045,-500.0,0.00057534,120]
[320363548,1711337448055,-1368.99,0.00057534,120]
[320363550,1711337448066,-505.17832532,0.00057534,120]
[320363551,1711337448076,-500.0,0.00057534,120]
[320363553,1711337448086,-500.0,0.00057534,120]
[320363555,1711337448096,-505.89,0.00057534,120]
[320363557,1711337448106,-500.0,0.00057534,120]
[320363558,1711337448117,-1030.71,0.00057534,120]
[320363560,1711337448128,-500.0,0.00057534,120]
[320363562,1711337448138,-12644.78,0.00057534,120]
[320363563,1711337448149,-151.0,0.00057534,120]
[320363565,1711337448160,-500.0,0.00057534,120]
[320363567,1711337448171,-13511.3,0.00057534,90]
[320363569,1711337448182,-521.17,0.00057534,120]
[320363570,1711337448194,-500.0,0.00057534,120]
[320363572,1711337448205,-396.99961956,0.00057534,120]
[320363574,1711337448216,-506.05097451,0.00057534,120]
[320363575,1711337448226,-1246.64,0.00057534,120]
[320363577,1711337448237,-1506.69,0.00057534,120]
[320363579,1711337448248,-500.0,0.00057534,120]
[320363580,1711337448258,-500.0,0.00057534,120]
[320363582,1711337448269,-1249.53,0.00057534,120]
[320363584,1711337448280,-1946.69,0.00057534,120]
[320363585,1711337448290,-500.0,0.00057534,120]
[320363587,1711337448301,-2725.02,0.00057534,21]
[320363589,1711337448311,-505.28076432,0.00057534,120]
[320363591,1711337448322,-500.0,0.00057534,120]
[320363592,1711337448332,-500.0,0.00057534,60]
[320363594,1711337448343,-979.72,0.00057534,120]
[320363596,1711337448353,-287.57657146,0.00057534,120]
[320363597,1711337448364,-500.0,0.00057534,120]
[320363599,1711337448375,-2071.83,0.00057534,120]
[320363601,1711337448385,-500.0,0.00057534,120]
[320363603,1711337448395,-500.0,0.00057534,120]
[320363604,1711337448406,-500.0,0.00057534,120]
[320363606,1711337448416,-304.008729,0.00057534,120]
[320363608,1711337448428,-581.92,0.00057534,120]
[320363609,1711337448439,-304.008729,0.00057534,120]
[320363611,1711337448448,-2409.33,0.00057534,120]
[320363613,1711337448457,-500.0,0.00057534,120]
[320363614,1711337448466,-1264.63,0.00057534,120]
[320363625,1711337448579,-500.0,0.00057534,120]
[320363627,1711337448627,-1088.37,0.00057534,120]
[320363629,1711337448638,-1023.08,0.00057534,120]
[320363630,1711337448647,-3898.78,0.00057534,120]
[320363632,1711337448656,-2293.19,0.00057534,120]
[320363634,1711337448665,-500.0,0.00057534,120]
[320363635,1711337448674,-500.0,0.00057534,120]
[320363637,1711337448684,-500.0,0.00057534,120]
[320363639,1711337448693,-787.11,0.00057534,120]
[320363640,1711337448702,-1576.89,0.00057534,2]
[320363642,1711337448711,-20000.0,0.0006,120]
[320363644,1711337448722,-154.87609812,0.0006,120]
[320363645,1711337448731,-25793.15196839,0.0006,30]
[320363647,1711337448740,-500.0,0.0006,120]
[320363649,1711337448753,-1230.43873145,0.0006,120]
[320363721,1711337449866,-9421.8,0.0006,120]
[320363722,1711337449877,-3712.24000003,0.0006,120]
[320363723,1711337449889,-684.0,0.0006,120]
[320363724,1711337449971,-194.46317703,0.00057434,120]
[320363725,1711337449980,-194.46317703,0.00057434,120]
[320363726,1711337449989,-194.46317703,0.00057434,120]
[320363727,1711337449998,-194.46317703,0.00057434,120]
[320363728,1711337450007,-194.46317703,0.00057434,120]
[320363729,1711337450016,-194.46317703,0.00057434,120]
[320363730,1711337450024,-31631.5259553,0.0006,120]
[320363731,1711337450034,-198.881878,0.0006,120]
[320363732,1711337450043,-198.881878,0.0006,120]
[320363733,1711337450052,-548.269215,0.0006,120]
[320363734,1711337450061,-548.269215,0.0006,120]
[320363735,1711337450070,-151.0,0.0006,10]
[320363736,1711337450079,-151.0,0.0006,120]
[320363737,1711337450088,-151.0,0.0006,120]
[320363738,1711337450097,-304.008729,0.0006,120]
[320363739,1711337450106,-304.008729,0.0006,120]
[320363740,1711337450115,-826.3,0.00060273,120]
[320363742,1711337450124,-866.39,0.00060273,120]
[320363743,1711337450133,-210.04943816,0.00060273,120]
[320363744,1711337450142,-500.0,0.00060273,120]
[320363745,1711337450151,-1012.35,0.00060273,120]
[320363747,1711337450161,-520.35,0.00060273,120]
[320363748,1711337450170,-500.0,0.00060273,120]
[320363750,1711337450179,-502.38953126,0.00060273,120]
[320363752,1711337450188,-500.0,0.00060273,120]
[320363754,1711337450198,-500.0,0.00060273,120]
[320363756,1711337450207,-500.0,0.00060273,120]
[320363758,1711337450216,-500.0,0.00060273,120]
[320363760,1711337450225,-500.0,0.00060273,120]
[320363762,1711337450235,-500.0,0.00060273,120]
[320363764,1711337450244,-505.19034469,0.00060273,120]
[320363766,1711337450254,-500.0,0.00060273,120]
[320363768,1711337450263,-500.0,0.00060273,120]
[320363770,1711337450274,-654.74,0.00060273,120]
[320363772,1711337450283,-1557.96,0.00060273,120]
[320363774,1711337450292,-500.0,0.00060273,120]
[320363776,1711337450301,-718.28,0.00060273,120]
[320363778,1711337450311,-500.0,0.00060273,120]
[320363780,1711337450320,-500.0,0.00060273,120]
[320363782,1711337450329,-500.0,0.00060273,120]
[320363784,1711337450339,-500.0,0.00060273,120]
[320363786,1711337450352,-1083.31,0.00060273,120]
[320363788,1711337450362,-500.0,0.00060273,120]
[320363790,1711337450371,-489.15696578,0.00060273,120]
[320363792,1711337450382,-500.0,0.00060273,120]
[320363794,1711337450391,-500.0,0.00060273,120]
[320363796,1711337450401,-1235.2,0.00060273,120]
[320363798,1711337450410,-1996.52,0.00060273,120]
[320363800,1711337450420,-500.0,0.00060273,120]
[320363802,1711337450430,-500.0,0.00060273,120]
[320363804,1711337450439,-508.56,0.00060273,120]
[320363806,1711337450448,-500.0,0.00060273,120]
[320363810,1711337450475,-832.02,0.00060273,120]
[320363812,1711337450486,-500.0,0.00060273,120]
[320363814,1711337450497,-597.38,0.00060273,120]
[320363816,1711337450508,-500.0,0.00060273,120]
[320363818,1711337450518,-500.0,0.00060273,120]
[320363820,1711337450528,-198.881878,0.00060273,120]
[320363822,1711337450539,-198.881878,0.00060273,120]
[320363824,1711337450549,-227.56427267,0.00060273,120]
[320363826,1711337450559,-500.0,0.00060273,120]
[320363828,1711337450569,-198.881878,0.00060273,120]
[320363830,1711337450580,-198.881888,0.00060273,120]
[320363832,1711337450591,-500.0,0.00060273,120]
[320363834,1711337450602,-1699.91,0.00060273,120]
[320363837,1711337450613,-500.0,0.00060273,120]
[320363839,1711337450623,-500.0,0.00060273,120]
[320363841,1711337450636,-500.0,0.00060273,120]
[320363843,1711337450646,-287.28726396,0.00060273,120]
[320384031,1711337828566,659.91,0.00025018,2]
[320384034,1711338444166,-173.476741,0.00048333,2]
[320384035,1711338444188,-24262.0814841,0.00049155,2]
[320384036,1711338444212,-2603.46833484,0.00049213,7]
[320384037,1711338444231,-3602.86513519,0.00049214,2]
[320384038,1711338444251,-912.14696961,0.000499,2]
[320384039,1711338444272,-14096.44637031,0.000499,2]
[320384040,1711338444292,-6807.05025098,0.0005,30]
[320384041,1711338444314,-3199.952,0.00051007,4]
[320384042,1711338444337,-150.89437394,0.00051894,2]
[320384043,1711338444358,-155.53665283,0.00054242,3]
[320384044,1711338444379,-2581.5126493,0.00054351,120]
[320384045,1711338444400,-2581.5126493,0.00054359,120]
[320384046,1711338444422,-2581.5126493,0.00054377,120]
[320384047,1711338444446,-863.58897567,0.00054594,2]
[320384048,1711338444468,-249.90436253,0.00054594,2]
[320384049,1711338444489,-181.48023122,0.00054691,4]
[320384050,1711338444513,-500.0,0.00054691,120]